fUSD/lending_fUSD_20260321
["ID","MTS","AMOUNT","RATE_DAILY","PERIOD"]
[408681237,1774113040091,-192.2159562,0.00013327,2]
[408681238,1774113040101,-1200.0,0.00013336,2]
[408681239,1774113040110,-591.05670596,0.00013337,2]
[408681240,1774113040119,-1000.0,0.00013338,2]
[408681241,1774113040128,-1059.2752,0.00013338,2]
[408681242,1774113040137,-1057583.6858,0.00013338,2]
[408681243,1774113040148,-22214.1809,0.00013338,2]
[408681244,1774113040159,-5668.68,0.00013342,2]
[408681245,1774113040168,-502.82851011,0.00013373,2]
[408681246,1774113040178,-8406.01904693,0.00013533,2]
[408681247,1774113040188,-1785.36659399,0.00013618,2]
[408681248,1774113040198,-299.99,0.00013618,2]
[408681249,1774113040207,-150.99,0.00013618,2]
[408681250,1774113040216,-9999.99,0.00013618,2]
[408681251,1774113040225,-499.99,0.00013618,2]
[408681252,1774113040235,-150.99,0.00013618,2]
[408681253,1774113040245,-9999.99,0.00013618,2]
[408681254,1774113040254,-9999.99,0.00013618,2]
[408681255,1774113040263,-9999.99,0.00013618,2]
[408681256,1774113040273,-999.99,0.00013618,2]
[408681257,1774113040282,-19999.99,0.00013618,2]
[408681258,1774113040292,-9999.99,0.00013618,2]
[408681259,1774113040302,-437.76,0.00013618,2]
[408681260,1774113040311,-1478.87,0.00013618,2]
[408681261,1774113040320,-1399.58913796,0.00013633,2]
[408681262,1774113040329,-3865.70467861,0.00013633,2]
[408681263,1774113040339,-3174.83855584,0.00013633,2]
[408681264,1774113040348,-206.76277837,0.00013636,2]
[408681265,1774113040357,-331.73047252,0.00013636,2]
[408681266,1774113040367,-191.62123494,0.00013636,2]
[408681267,1774113040376,-31102.64797373,0.00013638,2]
[408681268,1774113040386,-535.77181078,0.00013673,2]
[408681269,1774113040395,-500.0,0.00013673,2]
[408681270,1774113040404,-503.22543564,0.00013673,2]
[408681271,1774113040414,-500.0,0.00013673,2]
[408681272,1774113040426,-500.0,0.00013673,2]
[408681273,1774113040436,-504.03256925,0.00013673,2]
[408681274,1774113040446,-500.0,0.00013673,2]
[408681275,1774113040455,-429.3358411,0.00013673,2]
[408681276,1774113040466,-457.24188603,0.00013673,2]
[408681277,1774113040475,-500.0,0.00013673,2]
[408681278,1774113040485,-333.74740353,0.00013673,2]
[408681279,1774113040494,-163.4894394,0.00013673,2]
[408681280,1774113040503,-310.27363011,0.00013673,2]
[408681281,1774113040513,-502.08297344,0.00013673,2]
[408681282,1774113040522,-450.82293115,0.00013673,2]
[408681283,1774113040531,-500.0,0.00013673,2]
[408681284,1774113040540,-167.44290588,0.00013673,2]
[408681285,1774113040550,-500.0,0.00013673,2]
[408681286,1774113040559,-500.0,0.00013673,2]
[408681287,1774113040569,-500.6537405,0.00013673,2]
[408681288,1774113040578,-500.0,0.00013673,2]
[408681289,1774113040588,-189.42132633,0.00013681,2]
[408681290,1774113040598,-4052.08,0.00013698,2]
[408681291,1774113040607,-4052.08,0.00013698,2]
[408681292,1774113040617,-4052.08,0.00013698,2]
[408681293,1774113040626,-4052.08,0.00013698,2]
[408681294,1774113040635,-4052.08,0.00013698,2]
[408681295,1774113040645,-4052.08,0.00013698,2]
[408681296,1774113040654,-4052.08,0.00013698,2]
[408681297,1774113040663,-4052.08,0.00013698,2]
[408681298,1774113040676,-4052.08,0.00013698,2]
[408681299,1774113040686,-4052.08,0.00013698,2]
[408681300,1774113040695,-4052.08,0.00013698,2]
[408681301,1774113040705,-4052.08,0.00013698,2]
[408681302,1774113040715,-4052.08,0.00013698,2]
[408681303,1774113040725,-4052.08,0.00013698,2]
[408681304,1774113040733,-4052.08,0.00013698,2]
[408681305,1774113040746,-187.04841564,0.00013699,2]
[408681307,1774113040755,-730.84,0.000137,2]
[408681308,1774113040764,-445.18,0.000137,2]
[408681309,1774113040773,-775.52,0.000137,2]
[408681310,1774113040783,-337.61,0.000137,2]
[408681311,1774113040793,-265.44762194,0.00013823,2]
[408681312,1774113040802,-8406.01904693,0.00013829,2]
[408681313,1774113040815,-157.0,0.00013857,2]
[408681314,1774113040826,-200.0,0.00013877,2]
[408681315,1774113040835,-1200.0,0.000139,5]
[408681316,1774113040845,-382.0,0.00013901,2]
[408681317,1774113040855,-1621.0,0.00013928,2]
[408681318,1774113040865,-500.0,0.00013947,2]
[408681319,1774113040874,-1785.36659399,0.00013999,2]
[408681320,1774113040883,-1376.33,0.00014097,2]
[408681321,1774113040892,-189.42132633,0.00014125,2]
[408681322,1774113040902,-8406.01904693,0.00014125,2]
[408681323,1774113040912,-200.0,0.00014135,2]
[408681324,1774113040922,-1000.0,0.00014221,2]
[408681325,1774113040932,-500.5356408,0.00014221,2]
[408681326,1774113040942,-1000.0,0.00014221,2]
[408681327,1774113040952,-1000.0,0.00014221,2]
[408681328,1774113040962,-1000.0,0.00014221,2]
[408681329,1774113040972,-1000.0,0.00014221,2]
[408681330,1774113040981,-502.75906759,0.00014221,2]
[408681331,1774113040991,-500.0,0.00014221,2]
[408681332,1774113041000,-170.03,0.00014341,2]
[408681333,1774113041010,-1600.0,0.00014349,2]
[408681334,1774113041023,-1785.36659399,0.00014379,2]
[408681335,1774113041034,-401.15,0.00014399,2]
[408681336,1774113041044,-8406.01904693,0.00014421,2]
[408681337,1774113041053,-200.0,0.00014425,2]
[408681338,1774113041062,-255.0,0.00014443,2]
[408681339,1774113041072,-500.0,0.00014495,2]
[408681340,1774113041081,-879.24,0.00014555,2]
[408681341,1774113041091,-193.0,0.0001456,2]
[408681342,1774113041100,-250.0,0.0001456,2]
[408681343,1774113041109,-300.0,0.0001456,2]
[408681344,1774113041119,-300.0,0.0001456,2]
[408681345,1774113041128,-2500.0,0.0001456,2]
[408681346,1774113041139,-2500.0,0.0001456,2]
[408681347,1774113041149,-5000.0,0.0001456,2]
[408681348,1774113041158,-189.42132633,0.00014569,2]
[408681349,1774113041167,-841.96406,0.00014569,2]
[408681350,1774113041177,-229.19,0.000146,2]
[408681351,1774113041187,-1000.0,0.00014667,2]
[408681352,1774113041198,-318.21033924,0.00014667,2]
[408681353,1774113041208,-1680.0,0.0001467,2]
[408681354,1774113041217,-289.0,0.00014687,2]
[408681355,1774113041227,-4052.08,0.00014716,2]
[408681356,1774113041236,-8406.01904693,0.00014716,2]
[408681357,1774113041248,-1785.36659399,0.00014759,2]
[408681358,1774113041257,-1000.0,0.00014768,2]
[408681359,1774113041267,-879.24,0.00014829,2]
[408681360,1774113041276,-218.0,0.00014851,2]
[408681361,1774113041286,-289.0,0.00014877,2]
[408681362,1774113041295,-557.72229793,0.00014897,2]
[408681363,1774113041305,-9211.34798985,0.00014897,2]
[408681364,1774113041314,-500.0,0.00014897,2]
[408681365,1774113041324,-500.0,0.00014897,2]
[408681366,1774113041334,-500.0,0.00014897,2]
[408681367,1774113041343,-348.03702285,0.00014897,2]
[408681368,1774113041352,-500.0,0.00014897,2]
[408681369,1774113041361,-500.0,0.00014897,2]
[408681370,1774113041370,-500.0,0.00014897,2]
[408681371,1774113041380,-500.0,0.00014897,2]
[408681372,1774113041395,-500.0,0.00014897,2]
[408681373,1774113041408,-500.0,0.00014897,2]
[408681374,1774113041419,-500.0,0.00014897,2]
[408681375,1774113041431,-500.0,0.00014897,2]
[408681376,1774113041442,-500.0,0.00014897,2]
[408681377,1774113041451,-500.0,0.00014897,2]
[408681378,1774113041462,-500.0,0.00014897,2]
[408681379,1774113041473,-151.0,0.00014897,2]
[408681380,1774113041485,-9552.16786547,0.00014952,2]
[408681381,1774113041496,-500.0,0.00014952,2]
[408681382,1774113041508,-151.0,0.00014952,2]
[408681383,1774113041518,-250.0,0.00015,2]
[408681384,1774113041530,-515.99986652,0.00015,2]
[408681385,1774113041542,-9905.5980765,0.00015007,2]
[408681386,1774113041554,-500.0,0.00015007,2]
[408681387,1774113041565,-151.0,0.00015007,2]
[408681388,1774113041576,-3391.0,0.00015012,5]
[408681389,1774113041587,-189.42132633,0.00015012,2]
[408681390,1774113041598,-8406.01904693,0.00015012,2]
[408681391,1774113041607,-854.055915,0.00015037,2]
[408681392,1774113041618,-289.0,0.0001505,2]
[408681393,1774113041629,-10272.10520533,0.00015062,2]
[408681394,1774113041647,-500.0,0.00015062,2]
[408681395,1774113041658,-151.0,0.00015062,2]
[408681396,1774113041674,-400.0,0.00015075,2]
[408681397,1774113041685,-617.91991046,0.00015083,2]
[408681398,1774113041698,-7234.70553466,0.00015083,2]
[408681399,1774113041712,-2671.13458251,0.00015083,2]
[408681400,1774113041722,-2222.8763441,0.00015083,2]
[408681401,1774113041733,-500.0,0.00015083,2]
[408681402,1774113041745,-500.0,0.00015083,2]
[408681403,1774113041756,-500.0,0.00015083,2]
[408681404,1774113041769,-500.0,0.00015083,2]
[408681405,1774113041781,-500.0,0.00015083,2]
[408681406,1774113041794,-189.85256581,0.00015083,2]
[408681407,1774113041805,-500.0,0.00015083,2]
[408681408,1774113041816,-500.0,0.00015083,2]
[408681409,1774113041827,-500.0,0.00015083,2]
[408681410,1774113041837,-500.0,0.00015083,2]
[408681411,1774113041848,-500.0,0.00015083,2]
[408681412,1774113041861,-500.0,0.00015083,2]
[408681413,1774113041873,-500.0,0.00015083,2]
[408681414,1774113041884,-500.0,0.00015083,2]
[408681415,1774113041895,-500.0,0.00015083,2]
[408681416,1774113041907,-500.0,0.00015083,2]
[408681417,1774113041918,-500.0,0.00015083,2]
[408681418,1774113041929,-500.0,0.00015083,2]
[408681419,1774113041942,-500.0,0.00015083,2]
[408681420,1774113041952,-500.0,0.00015083,2]
[408681421,1774113041964,-500.0,0.00015083,2]
[408681422,1774113041975,-500.0,0.00015083,2]
[408681423,1774113041986,-500.0,0.00015083,2]
[408681424,1774113041997,-500.0,0.00015083,2]
[408681425,1774113042011,-500.0,0.00015083,2]
[408681426,1774113042023,-500.0,0.00015083,2]
[408681427,1774113042035,-500.0,0.00015083,2]
[408681428,1774113042047,-500.0,0.00015083,2]
[408681429,1774113042059,-500.0,0.00015083,2]
[408681430,1774113042070,-500.0,0.00015083,2]
[408681431,1774113042082,-500.0,0.00015083,2]
[408681432,1774113042093,-500.0,0.00015083,2]
[408681433,1774113042103,-500.0,0.00015083,2]
[408681434,1774113042113,-500.0,0.00015083,2]
[408681435,1774113042124,-500.0,0.00015083,2]
[408681436,1774113042135,-500.0,0.00015083,2]
[408681437,1774113042145,-500.0,0.00015083,2]
[408681438,1774113042157,-405.13912485,0.00015083,2]
[408681439,1774113042169,-500.0,0.00015083,2]
[408681440,1774113042182,-500.0,0.00015083,2]
[408681441,1774113042193,-500.0,0.00015083,2]
[408681442,1774113042204,-150.0,0.00015083,2]
[408681443,1774113042214,-500.0,0.00015083,2]
[408681444,1774113042223,-500.0,0.00015083,2]
[408681445,1774113042233,-208.74190005,0.00015083,2]
[408681446,1774113042244,-500.0,0.00015083,2]
[408681447,1774113042254,-500.0,0.00015083,2]
[408681448,1774113042266,-500.0,0.00015083,2]
[408681449,1774113042278,-500.0,0.00015083,2]
[408681450,1774113042291,-500.0,0.00015083,2]
[408681451,1774113042303,-500.0,0.00015083,2]
[408681452,1774113042315,-500.0,0.00015083,2]
[408681453,1774113042326,-500.0,0.00015083,2]
[408681454,1774113042337,-538.0,0.00015083,2]
[408681455,1774113042348,-500.0,0.00015083,2]
[408681456,1774113042358,-500.0,0.00015083,2]
[408681457,1774113042369,-150.0,0.00015083,2]
[408681458,1774113042379,-500.0,0.00015083,2]
[408681459,1774113042390,-500.0,0.00015083,2]
[408681460,1774113042401,-500.0,0.00015083,2]
[408681461,1774113042411,-500.0,0.00015083,2]
[408681462,1774113042422,-314.39578779,0.00015083,2]
[408681463,1774113042432,-500.0,0.00015083,2]
[408681464,1774113042442,-500.0,0.00015083,2]
[408681465,1774113042453,-500.0,0.00015083,2]
[408681466,1774113042464,-643.24035249,0.00015083,2]
[408681467,1774113042475,-500.0,0.00015086,2]
[408681468,1774113042486,-500.0,0.00015086,2]
[408681469,1774113042496,-150.0,0.00015086,2]
[408681470,1774113042506,-500.0,0.00015086,2]
[408681471,1774113042517,-172.7281616,0.00015086,2]
[408681472,1774113042528,-464.5671109,0.00015086,2]
[408681473,1774113042539,-150.0,0.00015086,2]
[408681474,1774113042550,-150.0,0.00015086,2]
[408681475,1774113042563,-150.0,0.00015086,2]
[408681476,1774113042574,-500.0,0.00015086,2]
[408681477,1774113042585,-239.48115894,0.00015086,2]
[408681478,1774113042596,-500.0,0.00015086,2]
[408681479,1774113042606,-230.61276914,0.00015086,2]
[408681480,1774113042618,-500.0,0.00015086,2]
[408681481,1774113042629,-500.0,0.00015086,2]
[408681482,1774113042641,-500.0,0.00015086,2]
[408681483,1774113042653,-500.0,0.00015086,2]
[408681484,1774113042664,-500.0,0.00015086,2]
[408681485,1774113042679,-500.0,0.00015086,2]
[408681487,1774113042691,-500.0,0.00015086,2]
[408681488,1774113042703,-500.0,0.00015086,2]
[408681489,1774113042716,-555.09199789,0.00015086,2]
[408681490,1774113042726,-172.02411673,0.00015086,2]
[408681491,1774113042737,-500.0,0.00015086,2]
[408681493,1774113042751,-516.42166311,0.00015086,2]
[408681494,1774113042762,-693.0,0.00015086,2]
[408681495,1774113042773,-500.0,0.00015086,2]
[408681496,1774113042784,-500.0,0.00015086,2]
[408681497,1774113042795,-693.0,0.00015086,2]
[408681498,1774113042805,-500.0,0.00015086,2]
[408681499,1774113042817,-693.0,0.00015086,2]
[408681500,1774113042828,-500.0,0.00015086,2]
[408681501,1774113042839,-500.0,0.00015086,2]
[408681502,1774113042850,-500.0,0.00015086,2]
[408681503,1774113042861,-693.0,0.00015086,2]
[408681504,1774113042872,-215.33010556,0.00015086,2]
[408681505,1774113042882,-500.0,0.00015086,2]
[408681506,1774113042893,-500.0,0.00015086,2]
[408681507,1774113042904,-500.0,0.00015086,2]
[408681508,1774113042914,-693.0,0.00015086,2]
[408681509,1774113042925,-500.0,0.00015086,2]
[408681510,1774113042936,-500.0,0.00015086,2]
[408681511,1774113042947,-500.0,0.00015086,2]
[408681512,1774113042958,-693.0,0.00015086,2]
[408681513,1774113042970,-500.0,0.00015086,2]
[408681514,1774113042981,-500.0,0.00015086,2]
[408681515,1774113042992,-500.0,0.00015086,2]
[408681516,1774113043003,-693.0,0.00015086,2]
[408681517,1774113043015,-500.0,0.00015086,2]
[408681518,1774113043026,-256.16426944,0.00015086,2]
[408681519,1774113043036,-500.0,0.00015086,2]
[408681520,1774113043048,-500.0,0.00015086,2]
[408681521,1774113043059,-500.0,0.00015086,2]
[408681522,1774113043069,-500.0,0.00015086,2]
[408681523,1774113043080,-693.0,0.00015086,2]
[408681524,1774113043091,-500.0,0.00015086,2]
[408681525,1774113043102,-246.79709611,0.00015086,2]
[408681526,1774113043113,-500.0,0.00015086,2]
[408681527,1774113043123,-693.0,0.00015086,2]
[408681528,1774113043133,-500.0,0.00015086,2]
[408681529,1774113043143,-500.0,0.00015086,2]
[408681530,1774113043154,-693.0,0.00015086,2]
[408681531,1774113043165,-500.0,0.00015086,2]
[408681532,1774113043175,-500.0,0.00015086,2]
[408681533,1774113043185,-693.0,0.00015086,2]
[408681534,1774113043195,-500.0,0.00015086,2]
[408681535,1774113043206,-500.0,0.00015086,2]
[408681536,1774113043216,-500.0,0.00015086,2]
[408681537,1774113043227,-693.0,0.00015086,2]
[408681538,1774113043239,-500.0,0.00015086,2]
[408681539,1774113043251,-500.0,0.00015086,2]
[408681540,1774113043262,-500.0,0.00015086,2]
[408681542,1774113043273,-500.0,0.00015086,2]
[408681544,1774113043283,-693.0,0.00015086,2]
[408681545,1774113043293,-500.0,0.00015086,2]
[408681546,1774113043304,-500.0,0.00015086,2]
[408681547,1774113043314,-500.0,0.00015086,2]
[408681549,1774113043505,-693.0,0.00015086,2]
[408681553,1774113043525,-261.70880193,0.00015086,2]
[408681554,1774113043535,-500.0,0.00015086,2]
[408681555,1774113043546,-500.0,0.00015086,2]
[408681556,1774113043556,-693.0,0.00015086,2]
[408681557,1774113043566,-500.0,0.00015086,2]
[408681558,1774113043575,-500.0,0.00015086,2]
[408681559,1774113043585,-693.0,0.00015086,2]
[408681560,1774113043594,-372.33776627,0.00015086,2]
[408681561,1774113043603,-500.0,0.00015086,2]
[408681562,1774113043612,-500.0,0.00015086,2]
[408681563,1774113043621,-500.0,0.00015086,2]
[408681564,1774113043631,-500.0,0.00015086,2]
[408681565,1774113043640,-500.0,0.00015086,2]
[408681566,1774113043649,-693.0,0.00015086,2]
[408681567,1774113043659,-500.0,0.00015086,2]
[408681568,1774113043670,-500.0,0.00015086,2]
[408681569,1774113043681,-500.0,0.00015086,2]
[408681570,1774113043690,-500.0,0.00015086,2]
[408681571,1774113043699,-500.0,0.00015086,2]
[408681572,1774113043709,-500.0,0.00015086,2]
[408681573,1774113043718,-693.0,0.00015086,2]
[408681574,1774113043728,-500.0,0.00015086,2]
[408681575,1774113043737,-500.0,0.00015086,2]
[408681576,1774113043748,-500.0,0.00015086,2]
[408681577,1774113043757,-500.0,0.00015086,2]
[408681578,1774113043766,-500.0,0.00015086,2]
[408681579,1774113043775,-500.0,0.00015086,2]
[408681580,1774113043785,-693.0,0.00015086,2]
[408681581,1774113043794,-500.0,0.00015086,2]
[408681582,1774113043804,-500.0,0.00015086,2]
[408681583,1774113043813,-693.0,0.00015086,2]
[408681584,1774113043824,-500.0,0.00015086,2]
[408681585,1774113043833,-266.24818512,0.00015086,2]
[408681586,1774113043843,-409.47795526,0.00015086,2]
[408681587,1774113043853,-693.0,0.00015086,2]
[408681588,1774113043863,-693.0,0.00015086,2]
[408681589,1774113043872,-693.0,0.00015086,2]
[408681590,1774113043882,-715.0,0.00015086,2]
[408681591,1774113043892,-265.07762347,0.00015086,2]
[408681592,1774113043901,-879.24,0.00015103,2]
[408681593,1774113043911,-10652.17309792,0.00015117,2]
[408681594,1774113043921,-500.0,0.00015117,2]
[408681595,1774113043931,-151.0,0.00015117,2]
[408681596,1774113043939,-1785.36659399,0.00015139,2]
[408681597,1774113043948,-11046.30350255,0.00015172,2]
[408681598,1774113043957,-500.0,0.00015172,2]
[408681599,1774113043967,-151.0,0.00015172,2]
[408681600,1774113043976,-400.0,0.00015186,2]
[408681601,1774113043986,-11455.01673214,0.00015227,2]
[408681602,1774113043995,-500.0,0.00015227,2]
[408681603,1774113044006,-151.0,0.00015227,2]
[408681604,1774113044015,-810.23969544,0.00015282,2]
[408681605,1774113044024,-500.0,0.00015282,2]
[408681606,1774113044034,-700.0,0.00015302,3]
[408681607,1774113044043,-8406.01904693,0.00015308,2]
[408681608,1774113044052,-350.0,0.00015361,3]
[408681609,1774113044061,-350.0,0.00015377,3]
[408681610,1774113044069,-879.24,0.00015377,2]
[408681611,1774113044078,-160.0,0.00015377,7]
[408681612,1774113044087,-160.0,0.00015377,7]
[408681613,1774113044096,-321.701815,0.00015386,7]
[408681614,1774113044105,-208.25,0.00015421,2]
[408681615,1774113044114,-3304.22,0.00015421,2]
[408681616,1774113044123,-190.5656331,0.00015422,2]
[408681617,1774113044132,-168.0,0.00015446,2]
[408681618,1774113044141,-189.42132633,0.00015456,2]
[408681619,1774113044150,-2182.35,0.00015507,2]
[408681620,1774113044160,-160.0,0.00015511,2]
[408681621,1774113044169,-979.16666667,0.00015511,2]
[408681622,1774113044178,-1785.36659399,0.0001552,2]
[408681623,1774113044187,-160.0,0.00015522,2]
[408681624,1774113044196,-381.559207,0.00015523,7]
[408681625,1774113044204,-160.0,0.00015523,7]
[408681626,1774113044214,-160.0,0.00015523,7]
[408681627,1774113044223,-345.159241,0.00015523,7]
[408681628,1774113044233,-350.0,0.00015563,2]
[408681629,1774113044242,-267.71316436,0.00015598,2]
[408681630,1774113044251,-200.0,0.000156,5]
[408681631,1774113044261,-3532.0,0.000156,2]
[408681632,1774113044270,-8406.01904693,0.00015604,2]
[408681633,1774113044279,-433.0,0.00015643,2]
[408681634,1774113044289,-479.76,0.00015651,2]
[408681635,1774113044298,-1274.08519804,0.0001568,2]
[408681636,1774113044307,-1044.0,0.00015691,2]
[408681637,1774113044317,-1347.443,0.00015691,2]
[408681638,1774113044326,-150.0,0.00015691,2]
[408681639,1774113044335,-1261.0,0.00015691,2]
[408681640,1774113044344,-200.0,0.000157,5]
[408681641,1774113044353,-500.0,0.00015723,2]
[408681642,1774113044362,-500.0,0.00015723,2]
[408681643,1774113044371,-500.0,0.00015723,2]
[408681644,1774113044379,-150.0,0.00015723,2]
[408681645,1774113044388,-330.27956121,0.00015723,2]
[408681646,1774113044397,-159.74456164,0.00015723,2]
[408681647,1774113044406,-500.0,0.00015723,2]
[408681648,1774113044416,-500.0,0.00015723,2]
[408681649,1774113044424,-190.77647721,0.00015723,2]
[408681650,1774113044434,-161.206,0.00015725,2]
[408681651,1774113044443,-400.0,0.00015727,2]
[408681652,1774113044451,-6007.0,0.00015734,2]
[408681653,1774113044460,-369.0,0.00015734,2]
[408681654,1774113044470,-2466.0,0.00015734,2]
[408681655,1774113044479,-400.0,0.00015771,2]
[408681656,1774113044488,-150.0,0.000158,2]
[408681657,1774113044497,-150.0,0.000158,2]
[408681658,1774113044506,-1000.0,0.000158,2]
[408681659,1774113044515,-200.0,0.000158,5]
[408681660,1774113044526,-350.0,0.00015806,2]
[408681661,1774113044535,-1078.35161779,0.00015808,2]
[408681662,1774113044544,-1000.0,0.00015822,2]
[408681663,1774113044554,-1000.0,0.00015824,2]
[408681664,1774113044564,-4052.08,0.00015839,2]
[408681665,1774113044574,-49284.66074,0.0001584,2]
[408681666,1774113044583,-157.56924,0.0001584,2]
[408681667,1774113044592,-157.56924,0.0001584,2]
[408681668,1774113044601,-150.0,0.00015841,14]
[408681669,1774113044610,-1000.0,0.00015841,2]
[408681670,1774113044619,-1000.0,0.00015842,2]
[408681671,1774113044629,-1000.0,0.00015846,2]
[408681672,1774113044638,-1000.0,0.00015847,2]
[408681673,1774113044647,-1000.0,0.00015868,2]
[408681674,1774113044656,-1000.0,0.00015871,2]
[408681675,1774113044666,-350.0,0.00015873,2]
[408681676,1774113044679,-150.0,0.00015894,2]
[408681677,1774113044688,-2182.35,0.00015895,2]
[408681678,1774113044697,-1785.36659399,0.000159,2]
[408681679,1774113044707,-792.4404,0.000159,2]
[408681680,1774113044716,-25000.0,0.000159,3]
[408681681,1774113044725,-9192.1786549,0.000159,3]
[408681682,1774113044735,-189.42132633,0.000159,2]
[408681683,1774113044744,-200.0,0.000159,5]
[408681684,1774113044754,-160.59971751,0.000159,2]
[408681685,1774113044763,-841.96406,0.000159,2]
[408681686,1774113044772,-8406.01904693,0.000159,2]
[408681687,1774113044781,-4236.0,0.000159,5]
[408681688,1774113044791,-150.0,0.00015918,2]
[408681689,1774113044802,-1000.0,0.00015935,2]
[408681690,1774113044811,-1000.0,0.00015939,2]
[408681691,1774113044820,-150.0,0.0001594,2]
[408681692,1774113044829,-1600.0,0.00015943,2]
[408681693,1774113044839,-783.45,0.00015951,2]
[408681694,1774113044848,-150.0,0.00015952,2]
[408681695,1774113044858,-150.0,0.00015954,2]
[408681696,1774113044867,-1962.81419762,0.00015956,2]
[408681697,1774113044876,-1000.0,0.00015966,2]
[408681698,1774113044886,-224.0,0.00015967,2]
[408681699,1774113044895,-225.696003,0.00015967,2]
[408681700,1774113044904,-500.0,0.00015973,2]
[408681701,1774113044913,-500.0,0.00015973,2]
[408681702,1774113044923,-500.56236053,0.00015973,2]
[408681703,1774113044932,-500.84837608,0.00015973,2]
[408681704,1774113044941,-500.0,0.00015973,2]
[408681705,1774113044950,-160.048,0.00015973,2]
[408681706,1774113044959,-500.0,0.00015973,2]
[408681707,1774113044969,-500.37853052,0.00015973,2]
[408681708,1774113044978,-500.64649173,0.00015973,2]
[408681709,1774113044987,-500.0,0.00015973,2]
[408681710,1774113044996,-500.0,0.00015973,2]
[408681711,1774113045005,-500.0,0.00015973,2]
[408681712,1774113045014,-500.0,0.00015973,2]
[408681713,1774113045024,-500.0,0.00015973,2]
[408681714,1774113045033,-568.73940458,0.00015973,2]
[408681715,1774113045042,-500.0,0.00015973,2]
[408681716,1774113045051,-501.53205621,0.00015973,2]
[408681717,1774113045061,-500.0,0.00015973,2]
[408681718,1774113045070,-500.0,0.00015973,2]
[408681719,1774113045080,-210.78762468,0.00015973,2]
[408681720,1774113045089,-500.19221246,0.00015973,2]
[408681721,1774113045099,-500.0,0.00015973,2]
[408681722,1774113045107,-150.0,0.00015973,2]
[408681723,1774113045117,-16687.9737524,0.00015983,2]
[408681724,1774113045126,-150.0,0.00015984,2]
[408681725,1774113045136,-67998.7006347,0.00015984,2]
[408681726,1774113045145,-151.0,0.00015997,2]
[408681727,1774113045157,-4052.08,0.00015998,2]
[408681728,1774113045167,-4052.08,0.00015998,2]
[408681729,1774113045177,-14024.8128733,0.00015999,2]
[408681730,1774113045188,-498862.6761943,0.00015999,2]
[408681731,1774113045197,-151.0,0.00015999,2]
[408681732,1774113045206,-151.0,0.00015999,2]
[408681733,1774113045216,-151.0,0.00015999,2]
[408681734,1774113045225,-36686.9802572,0.00015999,2]
[408681735,1774113045234,-13113.1063747,0.00015999,2]
[408681736,1774113045244,-151.0,0.00015999,2]
[408681737,1774113045253,-4052.08,0.00015999,2]
[408681738,1774113045262,-4052.08,0.00015999,2]
[408681739,1774113045271,-151.0,0.00015999,2]
[408681740,1774113045280,-4052.08,0.00015999,2]
[408681741,1774113045289,-4052.08,0.00015999,2]
[408681742,1774113045298,-4052.16,0.00015999,2]
[408681743,1774113045308,-151.0,0.00015999,2]
[408681744,1774113045317,-151.0,0.00015999,2]
[408681745,1774113045327,-203.302576,0.00015999,2]